[Event "*** Titled Tuesday Blitz"]
[Site "Chess.com"]
[Date "2020.04.07"]
[Round "1"]
[White "kuli4ik"]
[Black "Korona_91"]
[Result "1-0"]
[WhiteElo "2790"]
[BlackElo "2416"]
[TimeControl "180+1"]
[EndTime "13:07:43 PDT"]
[Termination "kuli4ik won by resignation"]

1. Nf3 {[%clk 0:02:55.6]} 1... g6 {[%clk 0:02:51.6]} 2. g3 {[%clk 0:02:55.7]}
2... Bg7 {[%clk 0:02:51.5]} 3. Bg2 {[%clk 0:02:56.3]} 3... d6 {[%clk 0:02:51.7]}
4. O-O {[%clk 0:02:56.3]} 4... e5 {[%clk 0:02:51.5]} 5. d4 {[%clk 0:02:53.8]}
5... e4 {[%clk 0:02:48.4]} 6. Nfd2 {[%clk 0:02:51.8]} 6... d5 {[%clk 0:02:47.7]}
7. c4 {[%clk 0:02:51.1]} 7... c6 {[%clk 0:02:47.3]} 8. Nc3 {[%clk 0:02:49.9]}
8... Ne7 {[%clk 0:02:35.7]} 9. cxd5 {[%clk 0:02:47.7]} 9... cxd5 {[%clk
0:02:34]} 10. Nb3 {[%clk 0:02:48.2]} 10... O-O {[%clk 0:02:33.6]} 11. Bg5 {[%clk
0:02:47.4]} 11... Nbc6 {[%clk 0:02:24.1]} 12. Qd2 {[%clk 0:02:44]} 12... b6
{[%clk 0:02:19.1]} 13. Rac1 {[%clk 0:02:37.7]} 13... Bb7 {[%clk 0:02:17]} 14.
Na1 {[%clk 0:02:37.2]} 14... Rc8 {[%clk 0:02:16.6]} 15. Nc2 {[%clk 0:02:37]}
15... Na5 {[%clk 0:02:16.5]} 16. b3 {[%clk 0:02:21.4]} 16... Qd7 {[%clk
0:02:09.9]} 17. Bxe7 {[%clk 0:02:12.5]} 17... Qxe7 {[%clk 0:01:56.3]} 18. Ne3
{[%clk 0:02:12.3]} 18... Rfd8 {[%clk 0:01:55.9]} 19. Ncxd5 {[%clk 0:01:58.3]}
19... Bxd5 {[%clk 0:01:49]} 20. Rxc8 {[%clk 0:01:49.9]} 20... Rxc8 {[%clk
0:01:48.8]} 21. Nxd5 {[%clk 0:01:50.4]} 21... Qd6 {[%clk 0:01:42.5]} 22. Bxe4
{[%clk 0:01:47.3]} 22... Nc6 {[%clk 0:01:42.9]} 23. e3 {[%clk 0:01:46.5]} 23...
Re8 {[%clk 0:01:41.2]} 24. Bg2 {[%clk 0:01:45.7]} 24... h5 {[%clk 0:01:40.4]}
25. Rc1 {[%clk 0:01:45.1]} 25... Nd8 {[%clk 0:01:39.4]} 26. h4 {[%clk
0:01:40.3]} 26... Ne6 {[%clk 0:01:39.4]} 27. Qb4 {[%clk 0:01:36.4]} 27... Qd7
{[%clk 0:01:38.9]} 28. Qc4 {[%clk 0:01:35.4]} 28... Qd6 {[%clk 0:01:27.3]} 29.
Qc6 {[%clk 0:01:32.4]} 29... Qb8 {[%clk 0:01:26]} 30. Qxe8+ {[%clk 0:01:24.7]}
30... Qxe8 {[%clk 0:01:25.3]} 31. Rc8 {[%clk 0:01:25.1]} 31... Kf8 {[%clk
0:01:18.4]} 32. Rxe8+ {[%clk 0:01:24.5]} 32... Kxe8 {[%clk 0:01:19.3]} 33. Kf1
{[%clk 0:01:21.6]} 33... Kd7 {[%clk 0:01:19.6]} 34. Ke2 {[%clk 0:01:21.2]} 34...
Kd6 {[%clk 0:01:20.1]} 35. Kd3 {[%clk 0:01:19.4]} 35... f5 {[%clk 0:01:19.4]}
36. Nc3 {[%clk 0:01:18.8]} 36... Nc7 {[%clk 0:01:19.3]} 37. Kc4 {[%clk
0:01:16.9]} 37... a6 {[%clk 0:01:19.4]} 38. a4 {[%clk 0:01:16.4]} 38... Bf6
{[%clk 0:01:19.2]} 39. e4 {[%clk 0:01:13.4]} 39... Bg7 {[%clk 0:01:11.6]} 40.
e5+ {[%clk 0:01:10.6]} 40... Kd7 {[%clk 0:01:12]} 41. f4 {[%clk 0:01:09.6]}
41... Bf8 {[%clk 0:01:11.5]} 42. b4 {[%clk 0:01:02.2]} 42... a5 {[%clk
0:01:11.3]} 43. bxa5 {[%clk 0:00:49.4]} 43... bxa5 {[%clk 0:01:12.2]} 44. Nd5
{[%clk 0:00:50.3]} 44... Na6 {[%clk 0:01:08]} 45. Nb6+ {[%clk 0:00:44.2]} 45...
Kc7 {[%clk 0:01:07.3]} 46. Kb5 {[%clk 0:00:42.3]} 46... Nb4 {[%clk 0:01:04.1]}
47. d5 {[%clk 0:00:41.5]} 47... Nc2 {[%clk 0:01:02.3]} 48. d6+ {[%clk
0:00:37.7]} 48... Kd8 {[%clk 0:01:02.5]} 49. Kxa5 {[%clk 0:00:28.9]} 49... Nd4
{[%clk 0:00:58.2]} 50. Bf1 {[%clk 0:00:25.4]} 50... Nb3+ {[%clk 0:00:51.4]} 51.
Kb4 {[%clk 0:00:25.1]} 51... Nd2 {[%clk 0:00:52]} 52. Bd3 {[%clk 0:00:25]} 52...
Nf3 {[%clk 0:00:50]} 53. a5 {[%clk 0:00:25]} 53... g5 {[%clk 0:00:49.8]} 54.
hxg5 {[%clk 0:00:23.3]} 54... h4 {[%clk 0:00:49.8]} 55. gxh4 {[%clk 0:00:23.7]}
1-0

[Event "*** Titled Tuesday Blitz"]
[Site "Chess.com"]
[Date "2020.04.07"]
[Round "1"]
[White "Bad4life"]
[Black "MartinCerveny"]
[Result "1-0"]
[WhiteElo "2325"]
[BlackElo "2623"]
[TimeControl "180+1"]
[EndTime "13:07:43 PDT"]
[Termination "Bad4life won by resignation"]

1. e4 {[%clk 0:03:00.9]} 1... c5 {[%clk 0:02:59.8]} 2. Nf3 {[%clk 0:03:00.7]}
2... d6 {[%clk 0:02:59.9]} 3. Bb5+ {[%clk 0:03:00.8]} 3... Bd7 {[%clk
0:02:59.1]} 4. a4 {[%clk 0:03:00.6]} 4... g6 {[%clk 0:02:58.3]} 5. O-O {[%clk
0:03:00.6]} 5... Bg7 {[%clk 0:02:58.4]} 6. Re1 {[%clk 0:03:01]} 6... Nf6 {[%clk
0:02:58.1]} 7. c3 {[%clk 0:03:01.3]} 7... O-O {[%clk 0:02:57.2]} 8. Bf1 {[%clk
0:02:58.3]} 8... Bc6 {[%clk 0:02:51.8]} 9. Qc2 {[%clk 0:02:56]} 9... e5 {[%clk
0:02:46.8]} 10. d4 {[%clk 0:02:50.9]} 10... exd4 {[%clk 0:02:13.8]} 11. cxd4
{[%clk 0:02:51.8]} 11... Re8 {[%clk 0:02:07.1]} 12. d5 {[%clk 0:02:38.5]} 12...
Bd7 {[%clk 0:02:06]} 13. Bf4 {[%clk 0:02:28]} 13... Bg4 {[%clk 0:02:04.4]} 14.
Nbd2 {[%clk 0:02:20]} 14... Bxf3 {[%clk 0:02:01.3]} 15. Nxf3 {[%clk 0:02:18.4]}
15... Nh5 {[%clk 0:02:01.2]} 16. Bg5 {[%clk 0:02:16.6]} 16... f6 {[%clk
0:01:46.5]} 17. Bd2 {[%clk 0:02:11.2]} 17... Bf8 {[%clk 0:01:39.2]} 18. Ra3
{[%clk 0:02:01.3]} 18... Nd7 {[%clk 0:01:37.9]} 19. a5 {[%clk 0:01:53.1]} 19...
Ne5 {[%clk 0:01:36.4]} 20. Bb5 {[%clk 0:01:49.7]} 20... Re7 {[%clk 0:01:30.5]}
21. a6 {[%clk 0:01:40.7]} 21... b6 {[%clk 0:01:29.8]} 22. Nxe5 {[%clk 0:01:36]}
22... dxe5 {[%clk 0:01:25.1]} 23. b4 {[%clk 0:01:28.3]} 23... Rc8 {[%clk
0:01:20.6]} 24. bxc5 {[%clk 0:01:22.9]} 24... Rxc5 {[%clk 0:01:19.4]} 25. Qb3
{[%clk 0:01:20.5]} 25... Rec7 {[%clk 0:01:15]} 26. d6+ {[%clk 0:01:16.1]} 26...
Rf7 {[%clk 0:01:14.5]} 27. Bc4 {[%clk 0:01:11]} 27... Rxc4 {[%clk 0:01:14.3]}
28. Qxc4 {[%clk 0:01:10.8]} 28... Qxd6 {[%clk 0:01:11.2]} 29. Rd3 {[%clk
0:01:07.6]} 29... Qc5 {[%clk 0:01:11]} 30. Qa2 {[%clk 0:00:47.7]} 30... Kg7
{[%clk 0:01:06.3]} 31. Rc1 {[%clk 0:00:27.2]} 31... Qb5 {[%clk 0:01:05.3]} 32.
Rb3 {[%clk 0:00:23.9]} 32... Qd7 {[%clk 0:01:03.9]} 33. Rbc3 {[%clk 0:00:20.6]}
33... Bc5 {[%clk 0:01:01]} 34. g3 {[%clk 0:00:19.3]} 34... f5 {[%clk 0:00:51.2]}
35. Qc4 {[%clk 0:00:16.6]} 35... Nf6 {[%clk 0:00:49.2]} 36. exf5 {[%clk
0:00:15.5]} 36... Qxf5 {[%clk 0:00:46.6]} 37. Be3 {[%clk 0:00:14.6]} 37... Ng4
{[%clk 0:00:25.4]} 38. Bxc5 {[%clk 0:00:10.8]} 38... bxc5 {[%clk 0:00:26.3]} 39.
f4 {[%clk 0:00:10.1]} 39... Qh5 {[%clk 0:00:24]} 40. h4 {[%clk 0:00:09]} 40...
exf4 {[%clk 0:00:23.6]} 41. Qxc5 {[%clk 0:00:08.8]} 41... Qxc5+ {[%clk
0:00:22.6]} 42. Rxc5 {[%clk 0:00:08.8]} 42... fxg3 {[%clk 0:00:22.9]} 43. Rc7
{[%clk 0:00:09.4]} 43... Ne5 {[%clk 0:00:20.9]} 44. Rxf7+ {[%clk 0:00:09.6]}
44... Kxf7 {[%clk 0:00:21.8]} 45. Rc7+ {[%clk 0:00:10.5]} 45... Ke6 {[%clk
0:00:22]} 46. Rxa7 {[%clk 0:00:11.4]} 46... Nc6 {[%clk 0:00:20.7]} 47. Rxh7
{[%clk 0:00:11]} 47... Kf5 {[%clk 0:00:20.9]} 48. a7 {[%clk 0:00:10.6]} 48...
Nxa7 {[%clk 0:00:20.5]} 49. Rxa7 {[%clk 0:00:11.5]} 49... Kg4 {[%clk 0:00:21.2]}
50. Kg2 {[%clk 0:00:11.9]} 50... Kxh4 {[%clk 0:00:21.1]} 51. Ra4+ {[%clk
0:00:12.5]} 51... Kh5 {[%clk 0:00:20.6]} 52. Kxg3 {[%clk 0:00:13.4]} 52... g5
{[%clk 0:00:21.5]} 53. Ra5 {[%clk 0:00:13.6]} 1-0

[Event "*** Titled Tuesday Blitz"]
[Site "Chess.com"]
[Date "2020.04.07"]
[Round "1"]
[White "penguingm1"]
[Black "elohunter1999"]
[Result "1-0"]
[WhiteElo "2895"]
[BlackElo "2461"]
[TimeControl "180+1"]
[EndTime "13:07:44 PDT"]
[Termination "penguingm1 won by resignation"]

1. d4 {[%clk 0:03:00.9]} 1... Nf6 {[%clk 0:02:59.4]} 2. c4 {[%clk 0:03:01]} 2...
e6 {[%clk 0:02:59.4]} 3. Nc3 {[%clk 0:03:01.6]} 3... Bb4 {[%clk 0:02:59.2]} 4.
Qc2 {[%clk 0:03:02.1]} 4... O-O {[%clk 0:02:58.2]} 5. Nf3 {[%clk 0:03:02.6]}
5... d5 {[%clk 0:02:56.8]} 6. Bg5 {[%clk 0:03:02.4]} 6... h6 {[%clk 0:02:48.5]}
7. Bxf6 {[%clk 0:03:02.3]} 7... Qxf6 {[%clk 0:02:48.4]} 8. a3 {[%clk 0:03:03.2]}
8... Bxc3+ {[%clk 0:02:40.8]} 9. Qxc3 {[%clk 0:03:04.1]} 9... dxc4 {[%clk
0:02:37.2]} 10. Qxc4 {[%clk 0:03:05]} 10... b6 {[%clk 0:02:36.7]} 11. Qxc7
{[%clk 0:02:58.1]} 11... Ba6 {[%clk 0:02:31.6]} 12. Rc1 {[%clk 0:02:46.6]} 12...
Rc8 {[%clk 0:01:49.6]} 13. Qxc8+ {[%clk 0:02:45.9]} 13... Bxc8 {[%clk
0:01:50.5]} 14. Rxc8+ {[%clk 0:02:46.3]} 14... Kh7 {[%clk 0:01:51.4]} 15. e3
{[%clk 0:02:41]} 15... Qf5 {[%clk 0:01:40.5]} 16. Kd2 {[%clk 0:01:44.1]} 16...
e5 {[%clk 0:01:39.1]} 17. Re8 {[%clk 0:01:42.9]} 17... Qd7 {[%clk 0:01:21.2]}
18. Bd3+ {[%clk 0:01:34.2]} 18... g6 {[%clk 0:01:20.1]} 19. Rxe5 {[%clk
0:00:32]} 19... Nc6 {[%clk 0:01:19.3]} 20. Rb5 {[%clk 0:00:28.3]} 20... Qg4
{[%clk 0:01:09.9]} 21. Rg1 {[%clk 0:00:21]} 21... Rd8 {[%clk 0:01:00.9]} 22. h3
{[%clk 0:00:20.5]} 22... Qd7 {[%clk 0:00:48.6]} 23. Rc1 {[%clk 0:00:18.8]} 23...
Kg7 {[%clk 0:00:33.7]} 24. Rb3 {[%clk 0:00:16.3]} 24... Rc8 {[%clk 0:00:29.7]}
25. Rbc3 {[%clk 0:00:16.4]} 25... Ne7 {[%clk 0:00:29.3]} 26. Ne5 {[%clk
0:00:15.8]} 26... Qe6 {[%clk 0:00:24.3]} 27. Rxc8 {[%clk 0:00:12.4]} 27... Nxc8
{[%clk 0:00:25.2]} 28. Bc4 {[%clk 0:00:11.6]} 28... Qf5 {[%clk 0:00:22.8]} 29.
f3 {[%clk 0:00:12]} 29... Nd6 {[%clk 0:00:22.6]} 30. Bd3 {[%clk 0:00:12.5]}
30... Qg5 {[%clk 0:00:21.3]} 31. g4 {[%clk 0:00:10.3]} 31... Qh4 {[%clk
0:00:20.9]} 32. Rc6 {[%clk 0:00:08.6]} 32... Qf2+ {[%clk 0:00:18.6]} 33. Be2
{[%clk 0:00:08.8]} 33... Ne8 {[%clk 0:00:16.4]} 34. Rc8 {[%clk 0:00:07.6]} 34...
Kf8 {[%clk 0:00:15.7]} 35. Ra8 {[%clk 0:00:06]} 35... Qg1 {[%clk 0:00:14.8]} 36.
Rxa7 {[%clk 0:00:06.1]} 36... Qb1 {[%clk 0:00:14.6]} 37. Rxf7+ {[%clk
0:00:06.3]} 37... Kg8 {[%clk 0:00:13.2]} 38. Bc4 {[%clk 0:00:05]} 38... Qxb2+
{[%clk 0:00:13.6]} 39. Ke1 {[%clk 0:00:05.4]} 39... Qc1+ {[%clk 0:00:13.6]} 40.
Kf2 {[%clk 0:00:05.6]} 40... Qd2+ {[%clk 0:00:14.1]} 41. Be2 {[%clk 0:00:05.5]}
41... Nd6 {[%clk 0:00:13.2]} 42. Rf6 {[%clk 0:00:06]} 42... Ne8 {[%clk
0:00:12.5]} 43. Rxg6+ {[%clk 0:00:06.4]} 43... Kf8 {[%clk 0:00:13.4]} 44. Rxh6
{[%clk 0:00:06.7]} 44... Ke7 {[%clk 0:00:13.7]} 45. Rxb6 {[%clk 0:00:06.8]}
45... Nd6 {[%clk 0:00:14.6]} 46. Rxd6 {[%clk 0:00:07]} 46... Kxd6 {[%clk
0:00:14.4]} 47. Nc4+ {[%clk 0:00:07.3]} 47... Kd5 {[%clk 0:00:15.2]} 48. Nxd2
{[%clk 0:00:08.2]} 48... Kc6 {[%clk 0:00:15.7]} 49. e4 {[%clk 0:00:08.7]} 49...
Kd6 {[%clk 0:00:16.6]} 50. Ke3 {[%clk 0:00:09.3]} 1-0

[Event "*** Titled Tuesday Blitz"]
[Site "Chess.com"]
[Date "2020.04.07"]
[Round "1"]
[White "Budisavljevic"]
[Black "anon219"]
[Result "0-1"]
[WhiteElo "2399"]
[BlackElo "2804"]
[TimeControl "180+1"]
[EndTime "13:07:49 PDT"]
[Termination "anon219 won on time"]

1. d4 {[%clk 0:02:59.6]} 1... Nf6 {[%clk 0:02:59.6]} 2. Nf3 {[%clk 0:02:59.2]}
2... d5 {[%clk 0:02:59.6]} 3. e3 {[%clk 0:02:56.7]} 3... c5 {[%clk 0:02:59.7]}
4. c4 {[%clk 0:02:46.8]} 4... cxd4 {[%clk 0:02:58]} 5. exd4 {[%clk 0:02:47.7]}
5... Nc6 {[%clk 0:02:55.9]} 6. Nc3 {[%clk 0:02:43.8]} 6... g6 {[%clk 0:02:40.6]}
7. Bg5 {[%clk 0:02:32.2]} 7... Be6 {[%clk 0:02:31.4]} 8. Bxf6 {[%clk 0:01:48.8]}
8... exf6 {[%clk 0:02:32.3]} 9. c5 {[%clk 0:01:49]} 9... Bg7 {[%clk 0:02:28]}
10. Be2 {[%clk 0:01:47.8]} 10... O-O {[%clk 0:02:27]} 11. O-O {[%clk 0:01:47.7]}
11... Re8 {[%clk 0:02:26.8]} 12. Nb5 {[%clk 0:01:47]} 12... Bf8 {[%clk
0:02:22.1]} 13. Re1 {[%clk 0:01:43.3]} 13... a6 {[%clk 0:02:21.7]} 14. Nc3
{[%clk 0:01:41.6]} 14... Qd7 {[%clk 0:02:22]} 15. Na4 {[%clk 0:01:36.9]} 15...
Qc7 {[%clk 0:02:20.7]} 16. Nb6 {[%clk 0:01:36]} 16... Rad8 {[%clk 0:02:20.5]}
17. a3 {[%clk 0:01:24]} 17... Bg4 {[%clk 0:02:19.8]} 18. b4 {[%clk 0:01:19.5]}
18... h5 {[%clk 0:02:18.3]} 19. h3 {[%clk 0:01:18.7]} 19... Bf5 {[%clk
0:02:17.5]} 20. Nh4 {[%clk 0:01:11.9]} 20... Be6 {[%clk 0:02:05]} 21. Nf3 {[%clk
0:00:56.5]} 21... Bg7 {[%clk 0:02:04.4]} 22. Bf1 {[%clk 0:00:54.9]} 22... Re7
{[%clk 0:01:51.8]} 23. Qd2 {[%clk 0:00:54.2]} 23... Bf5 {[%clk 0:01:50.5]} 24.
Nh4 {[%clk 0:00:49.7]} 24... Bc8 {[%clk 0:01:40.3]} 25. Rxe7 {[%clk 0:00:46.2]}
25... Nxe7 {[%clk 0:01:37.6]} 26. Re1 {[%clk 0:00:44.9]} 26... Be6 {[%clk
0:01:35]} 27. Bd3 {[%clk 0:00:40.1]} 27... f5 {[%clk 0:01:33.1]} 28. Bf1 {[%clk
0:00:37.2]} 28... Nc6 {[%clk 0:01:32.2]} 29. Nf3 {[%clk 0:00:27.3]} 29... Qe7
{[%clk 0:01:32.2]} 30. a4 {[%clk 0:00:26.6]} 30... Qf6 {[%clk 0:01:31.8]} 31.
Rd1 {[%clk 0:00:24.1]} 31... Ne7 {[%clk 0:01:21.2]} 32. b5 {[%clk 0:00:23]}
32... axb5 {[%clk 0:01:21.8]} 33. axb5 {[%clk 0:00:23.5]} 33... f4 {[%clk
0:01:22.1]} 34. Ra1 {[%clk 0:00:22.9]} 34... g5 {[%clk 0:01:21.6]} 35. Ra7
{[%clk 0:00:20.3]} 35... Rb8 {[%clk 0:01:20.3]} 36. Ne5 {[%clk 0:00:19.3]} 36...
Nc8 {[%clk 0:01:04.5]} 37. Ned7 {[%clk 0:00:18.4]} 37... Qd8 {[%clk 0:01:00.4]}
38. Nxc8 {[%clk 0:00:15.1]} 38... Qxd7 {[%clk 0:00:55.5]} 39. Nb6 {[%clk
0:00:13.7]} 39... Qd8 {[%clk 0:00:55.9]} 40. Qa5 {[%clk 0:00:12.8]} 40... Bxd4
{[%clk 0:00:55.2]} 41. c6 {[%clk 0:00:11.8]} 41... Bxb6 {[%clk 0:00:55.3]} 42.
Qa4 {[%clk 0:00:08.1]} 42... Bxa7 {[%clk 0:00:55.4]} 43. Qxa7 {[%clk 0:00:09]}
43... bxc6 {[%clk 0:00:54.9]} 44. bxc6 {[%clk 0:00:09.9]} 44... Rc8 {[%clk
0:00:55.5]} 45. Bb5 {[%clk 0:00:09.5]} 45... Qc7 {[%clk 0:00:55.9]} 46. Qc5
{[%clk 0:00:09.2]} 46... f3 {[%clk 0:00:55.3]} 47. gxf3 {[%clk 0:00:06]} 47...
Qf4 {[%clk 0:00:55.5]} 48. Ba6 {[%clk 0:00:03.7]} 48... Rc7 {[%clk 0:00:55.3]}
49. Qb6 {[%clk 0:00:03.6]} 49... Bxh3 {[%clk 0:00:54.3]} 50. Qb8+ {[%clk
0:00:04.5]} 50... Kg7 {[%clk 0:00:54.3]} 51. Bd3 {[%clk 0:00:03.8]} 51... Qxf3
{[%clk 0:00:52.2]} 52. Qb2+ {[%clk 0:00:03.5]} 52... f6 {[%clk 0:00:51]} 53. Bf1
{[%clk 0:00:04.4]} 53... Qd1 {[%clk 0:00:50.6]} 54. Kh2 {[%clk 0:00:04]} 54...
Qxf1 {[%clk 0:00:50.6]} 0-1

[Event "*** Titled Tuesday Blitz"]
[Site "Chess.com"]
[Date "2020.04.07"]
[Round "1"]
[White "j2806"]
[Black "Alliswell998"]
[Result "0-1"]
[WhiteElo "2004"]
[BlackElo "2515"]
[TimeControl "180+1"]
[EndTime "13:07:49 PDT"]
[Termination "Alliswell998 won by resignation"]

1. e4 {[%clk 0:02:59.7]} 1... c5 {[%clk 0:02:57.6]} 2. Nf3 {[%clk 0:02:59.3]}
2... d6 {[%clk 0:02:56.7]} 3. d4 {[%clk 0:02:59]} 3... cxd4 {[%clk 0:02:57.6]}
4. Nxd4 {[%clk 0:02:58.5]} 4... Nf6 {[%clk 0:02:56.8]} 5. Nc3 {[%clk 0:02:58.4]}
5... a6 {[%clk 0:02:54.4]} 6. Be3 {[%clk 0:02:58.1]} 6... e5 {[%clk 0:02:53.8]}
7. Nb3 {[%clk 0:02:57.7]} 7... Be7 {[%clk 0:02:48.1]} 8. f3 {[%clk 0:02:57.7]}
8... Be6 {[%clk 0:02:47.2]} 9. Qd2 {[%clk 0:02:57.5]} 9... Nbd7 {[%clk
0:02:46.3]} 10. O-O-O {[%clk 0:02:57.3]} 10... a5 {[%clk 0:02:45.7]} 11. Kb1
{[%clk 0:02:44.3]} 11... a4 {[%clk 0:02:45.4]} 12. Nc1 {[%clk 0:02:43.5]} 12...
a3 {[%clk 0:02:43.7]} 13. b3 {[%clk 0:02:41.3]} 13... O-O {[%clk 0:02:42.2]} 14.
g4 {[%clk 0:02:36.7]} 14... Ra5 {[%clk 0:02:36.6]} 15. h4 {[%clk 0:02:35.6]}
15... d5 {[%clk 0:02:34.1]} 16. g5 {[%clk 0:02:09.4]} 16... d4 {[%clk
0:02:29.7]} 17. gxf6 {[%clk 0:02:09.2]} 17... Bxf6 {[%clk 0:02:15.8]} 18. Bg5
{[%clk 0:01:58.5]} 18... dxc3 {[%clk 0:02:12.2]} 19. Qxc3 {[%clk 0:01:53.8]}
19... Rc5 {[%clk 0:02:06.6]} 20. Qd2 {[%clk 0:01:46.5]} 20... Qc7 {[%clk
0:02:00.8]} 21. Nd3 {[%clk 0:01:39.1]} 21... Rc3 {[%clk 0:01:55.2]} 22. Bh3
{[%clk 0:01:29.8]} 22... Rc8 {[%clk 0:01:46.4]} 23. Rc1 {[%clk 0:01:28.2]} 23...
h6 {[%clk 0:01:31.7]} 24. Bxf6 {[%clk 0:01:27.5]} 24... Nxf6 {[%clk 0:01:32.6]}
25. Bxe6 {[%clk 0:01:27.5]} 25... fxe6 {[%clk 0:01:33.5]} 26. Rhg1 {[%clk
0:01:25.2]} 26... Kh7 {[%clk 0:01:31.6]} 27. Rg2 {[%clk 0:01:22.2]} 27... Kh8
{[%clk 0:01:26.5]} 28. Rcg1 {[%clk 0:01:20.8]} 28... Nh5 {[%clk 0:01:25.4]} 29.
Rg6 {[%clk 0:01:17.4]} 29... Rxc2 {[%clk 0:01:14.4]} 30. Qd1 {[%clk 0:01:02]}
30... Qc3 {[%clk 0:00:56.4]} 31. R6g2 {[%clk 0:00:37.6]} 31... Rxg2 {[%clk
0:00:44.1]} 32. Rxg2 {[%clk 0:00:37.5]} 32... Rd8 {[%clk 0:00:44.4]} 33. Rd2
{[%clk 0:00:36.6]} 33... Nf4 {[%clk 0:00:42.6]} 34. Rc2 {[%clk 0:00:29]} 34...
Qxd3 {[%clk 0:00:41.1]} 35. Qxd3 {[%clk 0:00:28]} 35... Rxd3 {[%clk 0:00:41]}
36. Rc7 {[%clk 0:00:26.6]} 36... Rxf3 {[%clk 0:00:38.6]} 37. Rxb7 {[%clk
0:00:26.7]} 37... Rf2 {[%clk 0:00:38]} 38. Ra7 {[%clk 0:00:25.5]} 38... Rb2+
{[%clk 0:00:36.5]} 39. Kc1 {[%clk 0:00:24.9]} 39... Nd3+ {[%clk 0:00:35.5]} 40.
Kd1 {[%clk 0:00:24.8]} 40... Rxa2 {[%clk 0:00:35.2]} 41. b4 {[%clk 0:00:24.2]}
41... Nxb4 {[%clk 0:00:35]} 42. Kc1 {[%clk 0:00:23.8]} 42... Nd3+ {[%clk
0:00:30.9]} 43. Kb1 {[%clk 0:00:24]} 43... Rb2+ {[%clk 0:00:28.8]} 44. Ka1
{[%clk 0:00:24.3]} 44... Rb3 {[%clk 0:00:28.7]} 45. Ka2 {[%clk 0:00:23.9]} 45...
Rc3 {[%clk 0:00:27.9]} 46. Rxa3 {[%clk 0:00:23]} 46... Rxa3+ {[%clk 0:00:27.6]}
47. Kxa3 {[%clk 0:00:23]} 47... Nc5 {[%clk 0:00:28.5]} 48. Kb4 {[%clk
0:00:23.1]} 48... Nxe4 {[%clk 0:00:29.4]} 49. Kc4 {[%clk 0:00:23.6]} 49... Ng3
{[%clk 0:00:29.9]} 50. Kd3 {[%clk 0:00:23.2]} 50... Nf5 {[%clk 0:00:30.8]} 51.
Ke4 {[%clk 0:00:23.3]} 51... Nxh4 {[%clk 0:00:31.1]} 52. Kxe5 {[%clk 0:00:23.9]}
52... Kh7 {[%clk 0:00:32]} 53. Kxe6 {[%clk 0:00:24.3]} 53... Kg6 {[%clk
0:00:32.9]} 54. Ke5 {[%clk 0:00:24.9]} 54... Nf5 {[%clk 0:00:33.8]} 55. Kf4
{[%clk 0:00:25.2]} 55... h5 {[%clk 0:00:33.4]} 56. Kf3 {[%clk 0:00:25.5]} 56...
Kg5 {[%clk 0:00:33.9]} 57. Kg2 {[%clk 0:00:25.9]} 57... Kg4 {[%clk 0:00:34.5]}
58. Kh2 {[%clk 0:00:26.1]} 58... h4 {[%clk 0:00:35.1]} 59. Kg2 {[%clk
0:00:26.6]} 59... Ng3 {[%clk 0:00:34.5]} 60. Kh2 {[%clk 0:00:27.5]} 60... g5
{[%clk 0:00:34.9]} 61. Kg2 {[%clk 0:00:27.3]} 61... Kf4 {[%clk 0:00:35.2]} 62.
Kh2 {[%clk 0:00:27.7]} 62... g4 {[%clk 0:00:35.3]} 63. Kg1 {[%clk 0:00:27.9]}
63... Nf5 {[%clk 0:00:35.9]} 64. Kh2 {[%clk 0:00:28.3]} 64... Kf3 {[%clk
0:00:36.2]} 65. Kg1 {[%clk 0:00:28.4]} 65... g3 {[%clk 0:00:36.6]} 66. Kh1
{[%clk 0:00:28.6]} 66... g2+ {[%clk 0:00:36.4]} 67. Kg1 {[%clk 0:00:29]} 67...
h3 {[%clk 0:00:35.9]} 68. Kh2 {[%clk 0:00:29.6]} 68... Kf2 {[%clk 0:00:35.8]}
69. Kxh3 {[%clk 0:00:29.4]} 69... Ne7 {[%clk 0:00:35.7]} 70. Kg4 {[%clk
0:00:29.1]} 70... g1=Q+ {[%clk 0:00:35.4]} 0-1